[Event "VIII Iberoamericano Mexico 2022"]
[Site "Mexico City"]
[Date "2022.02.16"]
[Round "5.36"]
[White "Araya Umana, Carlos"]
[Black "Frey Beckman, Kenneth"]
[Result "0-1"]
[ECO "A47"]
[WhiteElo "1912"]
[BlackElo "2242"]
[Annotator "ChessBase"]
[PlyCount "78"]
[EventDate "2022.02.12"]
[EventType "swiss"]
[EventCountry "MEX"]
[SourceTitle "playchess.com"]
[Source "ChessBase"]
[SourceQuality "1"]
[TimeControl "5400+30"]

1. d4 {[%emt 0:00:30]} Nf6 {[%emt 0:02:57]} 2. Bf4 {[%emt 0:00:07]} e6 {[%emt 0:00:16]} 3. Nf3 {[%emt 0:00:28]} c5 {[%emt 0:00:20]} 4. e3 {[%emt 0:02:44]} b6 {[%emt 0:00:22]} 5. Nbd2 {[%emt 0:00:20]} Bb7 {[%emt 0:00:15]} 6. c3 {[%emt 0:01:56]} Be7 {[%emt 0:00:42]} 7. Be2 {[%emt 0:00:45]} Nh5 {[%emt 0:01:55]} 8. Bg3 {[%emt 0:01:15]} d6 {[%emt 0:04:20]} 9. O-O {[%emt 0:00:23]} Nxg3 {[%emt 0:00:17]} 10. hxg3 {[%emt 0:00:07]} Nd7 {[%emt 0:02:08]} 11. Re1 {[%emt 0:06:03]} Rc8 {[%emt 0:00:48]} 12. Rc1 {[%emt 0:04:41]} O-O {[%emt 0:00:22]} 13. Bd3 {[%emt 0:06:47]} Qc7 {[%emt 0:09:10]} 14. e4 {[%emt 0:09:20]} Bf6 {[%emt 0:00:30]} 15. Qe2 {[%emt 0:01:37]} cxd4 {[%emt 0:04:00]} 16. cxd4 {[%emt 0:06:05]} Qxc1 {[%emt 0:01:29]} 17. Rxc1 {[%emt 0:00:03]} Rxc1+ {[%emt 0:00:11]} 18. Kh2 {[%emt 0:00:34]} Be7 {[%emt 0:15:44]} 19. Nc4 {[%emt 0:11:24]} d5 {[%emt 0:02:26]} 20. exd5 Bxd5 {[%emt 0:00:29]} 21. b3 {[%emt 0:05:59]} Nf6 {[%emt 0:12:07]} 22. Nfe5 {[%emt 0:03:21]} b5 {[%emt 0:03:19]} 23. Ne3 {[%emt 0:01:23]} a6 {[%emt 0:05:43]} 24. Nc2 {[%emt 0:05:09]} Rc8 {[%emt 0:00:47]} 25. Qd2 {[%emt 0:01:09]} Rb1 {[%emt 0:01:07]} 26. f3 {[%emt 0:02:27]} Rb2 {[%emt 0:01:18]} 27. Qc1 {[%emt 0:13:37]} Rxa2 {[%emt 0:00:30]} 28. Qb1 {[%emt 0:00:10]} Ra5 {[%emt 0:01:14]} 29. g4 {[%emt 0:01:05]} Bd6 {[%emt 0:05:18]} 30. Ne3 {[%emt 0:06:15]} h6 {[%emt 0:07:38]} 31. g3 {[%emt 0:07:44]} Rc3 {[%emt 0:02:47]} 32. Nxd5 {[%emt 0:00:28]} Nxd5 {[%emt 0:00:18]} 33. Be4 {[%emt 0:01:18]} Bxe5 {[%emt 0:04:31]} 34. dxe5 {[%emt 0:00:06]} b4 {[%emt 0:00:22]} 35. Bd3 {[%emt 0:01:41]} Ne3 {[%emt 0:01:46]} 36. Bh7+ {[%emt 0:00:31]} Kh8 {[%emt 0:01:18]} 37. Bd3 {[%emt 0:00:17]} Rd5 {[%emt 0:01:14]} 38. Bf1 {[%emt 0:01:10]} Rc2+ {[%emt 0:00:31]} 39. Kh3 {[%emt 0:00:18]} Rd1 {[%emt 0:00:08]} 0-1

[Event "VIII Iberoamericano Mexico 2022"]
[Site "Mexico City"]
[Date "2022.02.16"]
[Round "5.37"]
[White "Miranda Rodriguez, Tania"]
[Black "Alvidrez Aguirre, Genaro"]
[Result "*"]
[ECO "B76"]
[WhiteElo "2174"]
[BlackElo "1880"]
[Annotator "ChessBase"]
[PlyCount "83"]
[EventDate "2022.02.12"]
[EventType "swiss"]
[EventCountry "MEX"]
[SourceTitle "playchess.com"]
[Source "ChessBase"]
[SourceQuality "1"]
[TimeControl "5400+30"]

1. e4 {[%emt 0:00:04]} c5 {[%emt 0:07:59]} 2. Nf3 {[%emt 0:00:17]} d6 {[%emt 0:00:24]} 3. d4 {[%emt 0:00:11]} cxd4 {[%emt 0:00:12]} 4. Nxd4 {[%emt 0:00:04]} Nf6 {[%emt 0:00:07]} 5. Nc3 {[%emt 0:00:05]} g6 {[%emt 0:00:32]} 6. Be3 {[%emt 0:00:34]} Bg7 {[%emt 0:00:28]} 7. f3 {[%emt 0:00:17]} O-O {[%emt 0:00:13]} 8. Qd2 {[%emt 0:00:30]} Nc6 {[%emt 0:00:07]} 9. O-O-O {[%emt 0:00:48]} d5 {[%emt 0:01:11]} 10. Nxc6 {[%emt 0:01:11]} bxc6 {[%emt 0:00:07]} 11. Bc4 {[%emt 0:00:20]} e6 {[%emt 0:03:41]} 12. Bb3 {[%emt 0:01:04]} Bb7 {[%emt 0:01:35]} 13. Na4 {[%emt 0:02:44]} Qc7 {[%emt 0:02:28]} 14. Nc5 {[%emt 0:03:43]} a5 {[%emt 0:03:41]} 15. h4 {[%emt 0:03:39]} Rfd8 {[%emt 0:08:51]} 16. Bh6 {[%emt 0:26:05]} Bxh6 {[%emt 0:15:07]} 17. Qxh6 {[%emt 0:00:08]} a4 {[%emt 0:00:11]} 18. Bxa4 {[%emt 0:10:49]} Qb6 {[%emt 0:04:22]} 19. Nxb7 {[%emt 0:09:36]} Qxb7 {[%emt 0:00:35]} 20. Bb3 {[%emt 0:02:45]} Qc7 {[%emt 0:26:39]} 21. Qg5 {[%emt 0:15:06]} Nh5 {[%emt 0:03:21]} 22. e5 {[%emt 0:01:56]} c5 {[%emt 0:04:20]} 23. c4 {[%emt 0:07:11]} d4 {[%emt 0:07:14]} 24. g4 {[%emt 0:01:10]} h6 {[%emt 0:01:47]} 25. Qxh6 {[%emt 0:06:00]} Ng3 {[%emt 0:00:09]} 26. h5 {[%emt 0:01:30]} Nxh1 {[%emt 0:00:23]} 27. hxg6 {[%emt 0:02:48]} fxg6 {[%emt 0:00:08]} 28. Qxg6+ {[%emt 0:00:42]} Qg7 {[%emt 0:00:13]} 29. Qxe6+ {[%emt 0:00:07]} Qf7 {[%emt 0:00:08]} 30. Qxf7+ {[%emt 0:00:28]} Kxf7 {[%emt 0:00:07]} 31. Rxh1 {[%emt 0:00:04]} Rh8 {[%emt 0:01:22]} 32. Re1 {[%emt 0:02:14]} Rh2 {[%emt 0:00:53]} 33. Bc2 {[%emt 0:00:43]} Rxa2 {[%emt 0:02:13]} 34. Kb1 {[%emt 0:00:07]} Ra6 {[%emt 0:01:09]} 35. f4 {[%emt 0:00:59]} Rf2 {[%emt 0:02:01]} 36. f5 {[%emt 0:00:40]} Rh6 {[%emt 0:00:22]} 37. g5 {[%emt 0:00:50]} Rhh2 {[%emt 0:00:13]} 38. e6+ {[%emt 0:00:17]} Ke8 {[%emt 0:00:29]} 39. Ba4+ {[%emt 0:00:58]} Ke7 {[%emt 0:01:31]} 40. f6+ {[%emt 0:00:05]} Kd6 {[%emt 0:00:06]} 41. e7 {[%emt 0:00:19]} Rxb2+ {[%emt 0:00:07]} 42. Kc1 {[%emt 0:02:22]} *

[Event "VIII Iberoamericano Mexico 2022"]
[Site "Mexico City"]
[Date "2022.02.16"]
[Round "5.38"]
[White "Gongora Montes, Benjamin"]
[Black "Hernandez Morales, Dillan"]
[Result "1-0"]
[ECO "A46"]
[WhiteElo "2157"]
[BlackElo "1846"]
[Annotator "NA"]
[PlyCount "61"]
[EventDate "2022.02.12"]
[EventType "swiss"]
[EventCountry "MEX"]
[SourceTitle "playchess.com"]
[Source "ChessBase"]
[SourceQuality "1"]
[TimeControl "5400+30"]

1. d4 {[%emt 0:01:12]} Nf6 {[%emt 0:00:14]} 2. Nf3 {[%emt 0:00:06]} e6 {[%emt 0:00:21]} 3. Bg5 {[%emt 0:00:05]} h6 {[%emt 0:02:03]} 4. Bxf6 {[%emt 0:00:05]} Qxf6 {[%emt 0:00:03]} 5. e4 {[%emt 0:00:07]} d6 {[%emt 0:01:10]} 6. e5 {[%emt 0:00:14]} dxe5 {[%emt 0:02:04]} 7. dxe5 {[%emt 0:00:06]} Qf4 {[%emt 0:05:12]} 8. c3 {[%emt 0:02:44]} Bd7 {[%emt 0:04:25]} 9. Nbd2 {[%emt 0:00:36]} Nc6 {[%emt 0:07:18]} 10. Qe2 {[%emt 0:01:22]} g5 {[%emt 0:05:12]} 11. g3 {[%emt 0:10:41]} Qf5 {[%emt 0:01:34]} 12. Nc4 {[%emt 0:00:11]} Bc5 {[%emt 0:09:25]} 13. Bg2 {[%emt 0:01:10]} a6 {[%emt 0:01:33]} 14. a4 {[%emt 0:00:35]} Rd8 {[%emt 0:06:39]} 15. b4 {[%emt 0:11:16]} Ba7 {[%emt 0:06:23]} 16. b5 {[%emt 0:00:51]} Nb8 {[%emt 0:03:00]} 17. b6 {[%emt 0:00:07]} Bxb6 {[%emt 0:01:50]} 18. Nxb6 {[%emt 0:01:30]} cxb6 {[%emt 0:00:08]} 19. Nd4 {[%emt 0:00:09]} Qg6 {[%emt 0:04:08]} 20. Bxb7 {[%emt 0:00:11]} O-O {[%emt 0:03:00]} 21. O-O {[%emt 0:00:21]} Bc8 {[%emt 0:01:57]} 22. Be4 $16 {[%emt 0:10:36]} f5 {[%emt 0:02:30]} 23. exf6 {[%emt 0:00:41]} Qxf6 {[%emt 0:00:10]} 24. f4 {[%emt 0:02:01]} Qg7 {[%emt 0:02:08]} 25. fxg5 {[%emt 0:00:34]} Rxf1+ {[%emt 0:04:47]} 26. Rxf1 {[%emt 0:00:15]} hxg5 {[%emt 0:00:06]} 27. Qh5 {[%emt 0:05:06]} Rf8 {[%emt 0:10:46]} 28. Bh7+ {[%emt 0:00:21]} Kh8 {[%emt 0:03:43]} 29. Rxf8+ {[%emt 0:00:13]} Qxf8 {[%emt 0:00:53]} 30. Be4+ {[%emt 0:00:08]} Kg7 {[%emt 0:00:44]} 31. Qg6+ {[%emt 0:00:07]} 1-0

[Event "VIII Iberoamericano Mexico 2022"]
[Site "Mexico City"]
[Date "2022.02.16"]
[Round "5.39"]
[White "Lopez Padilla, Piero Raul"]
[Black "Corrales Jimenez, Zenia"]
[Result "0-1"]
[ECO "D63"]
[WhiteElo "1898"]
[BlackElo "2151"]
[Annotator "ChessBase"]
[PlyCount "94"]
[EventDate "2022.02.12"]
[EventType "swiss"]
[EventCountry "MEX"]
[SourceTitle "playchess.com"]
[Source "ChessBase"]
[SourceQuality "1"]
[TimeControl "5400+30"]

1. d4 {[%emt 0:00:07]} d5 {[%emt 0:01:05]} 2. c4 {[%emt 0:00:14]} e6 {[%emt 0:00:05]} 3. Nc3 {[%emt 0:01:44]} Nf6 {[%emt 0:00:25]} 4. Nf3 {[%emt 0:00:07]} Be7 {[%emt 0:00:40]} 5. Bg5 {[%emt 0:00:52]} O-O {[%emt 0:01:49]} 6. e3 {[%emt 0:00:09]} Nbd7 {[%emt 0:02:15]} 7. Rc1 {[%emt 0:01:00]} c6 {[%emt 0:02:55]} 8. a3 {[%emt 0:02:49]} Re8 {[%emt 0:07:11]} 9. Bd3 {[%emt 0:00:40]} b6 {[%emt 0:07:06]} 10. cxd5 {[%emt 0:01:53]} exd5 {[%emt 0:01:27]} 11. O-O {[%emt 0:00:25]} Ne4 {[%emt 0:03:32]} 12. Bf4 {[%emt 0:08:59]} Nxc3 {[%emt 0:02:49]} 13. Rxc3 {[%emt 0:00:26]} Bb7 {[%emt 0:00:14]} 14. Ne5 {[%emt 0:03:20]} Nxe5 {[%emt 0:03:48]} 15. Bxe5 {[%emt 0:00:10]} c5 {[%emt 0:08:36]} 16. Bb5 {[%emt 0:08:48]} Rf8 {[%emt 0:00:45]} 17. dxc5 {[%emt 0:04:19]} bxc5 {[%emt 0:05:33]} 18. Qe2 {[%emt 0:31:27]} Bd6 {[%emt 0:06:34]} 19. Bxd6 {[%emt 0:00:51]} Qxd6 {[%emt 0:00:02]} 20. Rd1 {[%emt 0:00:06]} Rac8 {[%emt 0:04:38]} 21. Rcd3 {[%emt 0:05:37]} Qe7 {[%emt 0:07:30]} 22. R3d2 {[%emt 0:01:25]} g6 {[%emt 0:02:37]} 23. Ba6 {[%emt 0:01:09]} Rfd8 {[%emt 0:08:46]} 24. g3 {[%emt 0:05:00]} Rd6 {[%emt 0:07:59]} 25. Bxb7 {[%emt 0:01:07]} Qxb7 {[%emt 0:00:02]} 26. h4 {[%emt 0:00:13]} h5 {[%emt 0:01:18]} 27. Qf3 {[%emt 0:00:08]} Rcd8 {[%emt 0:00:06]} 28. Rc2 {[%emt 0:02:01]} Qb6 {[%emt 0:01:08]} 29. Rcd2 {[%emt 0:02:35]} d4 {[%emt 0:05:28]} 30. Qf4 {[%emt 0:02:55]} a5 {[%emt 0:01:34]} 31. Kg2 {[%emt 0:07:23]} Rd5 {[%emt 0:02:44]} 32. Qe4 {[%emt 0:01:09]} Qf6 {[%emt 0:00:55]} 33. b4 {[%emt 0:04:13]} axb4 {[%emt 0:00:27]} 34. axb4 {[%emt 0:00:10]} Re5 {[%emt 0:01:25]} 35. Qc2 {[%emt 0:02:31]} d3 {[%emt 0:02:17]} 36. Rxd3 {[%emt 0:01:35]} Rxd3 {[%emt 0:00:02]} 37. Qxd3 {[%emt 0:00:11]} Qc6+ {[%emt 0:00:15]} 38. Kg1 {[%emt 0:00:43]} cxb4 {[%emt 0:00:05]} 39. Qd4 {[%emt 0:00:41]} Re4 {[%emt 0:01:02]} 40. Qd8+ {[%emt 0:00:21]} Re8 {[%emt 0:00:02]} 41. Qd3 {[%emt 0:00:39]} Rb8 {[%emt 0:01:20]} 42. Qb3 {[%emt 0:00:04]} Qe6 {[%emt 0:01:49]} 43. Qxe6 {[%emt 0:01:05]} fxe6 {[%emt 0:00:02]} 44. Kf1 {[%emt 0:00:08]} Kf7 {[%emt 0:00:10]} 45. Ke2 {[%emt 0:00:03]} Ke7 {[%emt 0:00:11]} 46. Kd2 {[%emt 0:00:37]} Rd8+ {[%emt 0:00:42]} 47. Kc2 {[%emt 0:00:46]} b3+ {[%emt 0:00:15]} 0-1

[Event "VIII Iberoamericano Mexico 2022"]
[Site "Mexico City"]
[Date "2022.02.16"]
[Round "5.40"]
[White "Paredes Guzman, Francisco Javier"]
[Black "Real Pereyra, Jeronimo"]
[Result "0-1"]
[ECO "E32"]
[WhiteElo "1891"]
[BlackElo "2147"]
[Annotator "NA"]
[PlyCount "88"]
[EventDate "2022.02.12"]
[EventType "swiss"]
[EventCountry "MEX"]
[SourceTitle "playchess.com"]
[Source "ChessBase"]
[SourceQuality "1"]
[TimeControl "5400+30"]

1. d4 {[%emt 0:00:02]} Nf6 {[%emt 0:24:17]} 2. c4 {[%emt 0:00:04]} e6 {[%emt 0:00:05]} 3. Nc3 {[%emt 0:00:03]} Bb4 {[%emt 0:00:04]} 4. Qc2 {[%emt 0:00:05]} O-O {[%emt 0:00:06]} 5. e4 {[%emt 0:00:03]} d5 {[%emt 0:00:13]} 6. e5 {[%emt 0:00:04]} Ne4 {[%emt 0:00:03]} 7. Bd3 {[%emt 0:00:04]} c5 {[%emt 0:00:02]} 8. Nf3 {[%emt 0:00:05]} cxd4 {[%emt 0:10:01]} 9. Nxd4 {[%emt 0:00:05]} Qh4 {[%emt 0:04:27]} 10. O-O {[%emt 0:18:29]} Nxc3 {[%emt 0:06:20]} 11. bxc3 {[%emt 0:00:08]} dxc4 {[%emt 0:00:31]} 12. Be4 {[%emt 0:30:50]} Be7 $14 {[%emt 0:02:05]} 13. Nf3 {[%emt 0:00:33]} Qh5 {[%emt 0:01:01]} 14. g4 {[%emt 0:00:31]} Qxg4+ {[%emt 0:05:17]} 15. Kh1 {[%emt 0:00:09]} Qh5 {[%emt 0:01:39]} 16. Rg1 {[%emt 0:01:51]} Nd7 {[%emt 0:09:28]} 17. Rg3 {[%emt 0:05:37]} Nc5 {[%emt 0:03:29]} 18. Bg5 {[%emt 0:06:55]} Nxe4 {[%emt 0:03:59]} 19. Qxe4 {[%emt 0:00:07]} Bxg5 {[%emt 0:02:17]} 20. Rxg5 {[%emt 0:02:45]} Qh6 {[%emt 0:00:11]} 21. Rag1 {[%emt 0:09:19]} g6 {[%emt 0:00:38]} 22. Nd4 {[%emt 0:06:53]} Rb8 {[%emt 0:02:04]} 23. f3 {[%emt 0:01:44]} b5 {[%emt 0:03:34]} 24. Qf4 {[%emt 0:01:13]} Qg7 {[%emt 0:01:28]} 25. R1g3 {[%emt 0:04:09]} Rb7 {[%emt 0:03:56]} 26. Rh3 {[%emt 0:02:01]} f6 {[%emt 0:02:04]} 27. exf6 {[%emt 0:00:43]} Qxf6 {[%emt 0:01:03]} 28. Qxf6 {[%emt 0:03:33]} Rxf6 {[%emt 0:00:03]} 29. Rxb5 {[%emt 0:00:24]} e5 {[%emt 0:00:26]} 30. Rxb7 {[%emt 0:00:24]} Bxb7 {[%emt 0:00:13]} 31. Nb5 {[%emt 0:00:51]} Rxf3 {[%emt 0:00:29]} 32. Rxf3 {[%emt 0:00:08]} Bxf3+ {[%emt 0:00:04]} 33. Kg1 {[%emt 0:00:04]} a5 {[%emt 0:00:18]} 34. Kf2 {[%emt 0:00:09]} Bd5 {[%emt 0:01:10]} 35. Nc7 {[%emt 0:00:12]} Bf7 {[%emt 0:00:39]} 36. Ke3 {[%emt 0:00:14]} Kg7 {[%emt 0:00:17]} 37. a4 {[%emt 0:01:31]} g5 {[%emt 0:01:37]} 38. Nb5 {[%emt 0:00:13]} Bd5 {[%emt 0:01:04]} 39. Nc7 {[%emt 0:00:53]} Bc6 {[%emt 0:00:14]} 40. Ne6+ {[%emt 0:00:09]} Kf6 {[%emt 0:00:12]} 41. Nc5 {[%emt 0:00:15]} g4 {[%emt 0:00:47]} 42. Kf2 {[%emt 0:00:51]} h5 {[%emt 0:00:20]} 43. Kg3 {[%emt 0:00:28]} Kf5 {[%emt 0:00:11]} 44. Kf2 {[%emt 0:00:15]} h4 {[%emt 0:00:02]} 0-1

[Event "VIII Iberoamericano Mexico 2022"]
[Site "Mexico City"]
[Date "2022.02.16"]
[Round "5.41"]
[White "Martinez de La Trinidad, Alexandra"]
[Black "Guevara Sanchez, Erick Marvin"]
[Result "0-1"]
[ECO "A87"]
[WhiteElo "1843"]
[BlackElo "2145"]
[Annotator "NA"]
[PlyCount "70"]
[EventDate "2022.02.12"]
[EventType "swiss"]
[EventCountry "MEX"]
[SourceTitle "playchess.com"]
[Source "ChessBase"]
[SourceQuality "1"]
[TimeControl "5400+30"]

1. d4 {[%emt 0:00:30]} g6 {[%emt 0:05:46]} 2. Nf3 {[%emt 0:00:13]} Bg7 {[%emt 0:00:14]} 3. g3 {[%emt 0:00:09]} f5 {[%emt 0:00:09]} 4. Bg2 {[%emt 0:00:09]} Nf6 {[%emt 0:00:07]} 5. O-O {[%emt 0:00:07]} O-O {[%emt 0:00:13]} 6. b3 {[%emt 0:00:05]} d6 {[%emt 0:00:28]} 7. Bb2 {[%emt 0:00:29]} Qe8 {[%emt 0:00:11]} 8. c4 {[%emt 0:00:13]} h6 {[%emt 0:03:22]} 9. Qc2 {[%emt 0:00:55]} g5 {[%emt 0:04:37]} 10. Nc3 {[%emt 0:07:52]} Na6 {[%emt 0:03:43]} 11. Rad1 {[%emt 0:00:26]} c6 {[%emt 0:01:19]} 12. Rfe1 {[%emt 0:00:13]} Qh5 {[%emt 0:10:10]} 13. e4 {[%emt 0:04:03]} fxe4 {[%emt 0:11:42]} 14. Nxe4 {[%emt 0:00:26]} Nxe4 {[%emt 0:00:29]} 15. Qxe4 {[%emt 0:00:25]} Bg4 {[%emt 0:00:30]} 16. Re3 {[%emt 0:01:00]} Rf7 {[%emt 0:02:17]} 17. Rde1 {[%emt 0:00:38]} Bf5 {[%emt 0:00:28]} 18. g4 {[%emt 0:00:16]} Bxg4 {[%emt 0:03:21]} 19. Nd2 {[%emt 0:02:01]} Raf8 {[%emt 0:01:34]} 20. Rg3 {[%emt 0:00:28]} Bf5 {[%emt 0:02:25]} 21. Qe2 {[%emt 0:00:44]} Qg6 {[%emt 0:00:26]} 22. Nf3 {[%emt 0:00:44]} Qf6 {[%emt 0:04:48]} 23. Bc3 {[%emt 0:01:31]} Bd7 {[%emt 0:05:42]} 24. Nd2 {[%emt 0:03:56]} Nc7 {[%emt 0:06:52]} 25. Ne4 {[%emt 0:00:14]} Qg6 {[%emt 0:00:33]} 26. f3 {[%emt 0:02:15]} Ne6 {[%emt 0:00:52]} 27. Qd2 {[%emt 0:02:06]} Nf4 {[%emt 0:00:29]} 28. h4 {[%emt 0:00:11]} Nh5 {[%emt 0:01:49]} 29. Qf2 {[%emt 0:01:04]} Bf5 {[%emt 0:03:42]} 30. hxg5 $19 {[%emt 0:01:02]} Bxe4 {[%emt 0:09:37]} 31. gxh6 {[%emt 0:07:37]} Nxg3 {[%emt 0:00:34]} 32. hxg7 {[%emt 0:00:07]} Rxg7 {[%emt 0:02:47]} 33. d5 {[%emt 0:00:10]} Rh7 {[%emt 0:03:06]} 34. Qd4 {[%emt 0:05:28]} Bxf3 {[%emt 0:04:19]} 35. Re6 {[%emt 0:00:10]} Ne2+ {[%emt 0:00:24]} 0-1

[Event "VIII Iberoamericano Mexico 2022"]
[Site "Mexico City"]
[Date "2022.02.16"]
[Round "5.42"]
[White "Alfaro, William"]
[Black "Torres Rivas, Felipe de Jesus"]
[Result "1/2-1/2"]
[ECO "D30"]
[WhiteElo "2143"]
[BlackElo "1845"]
[Annotator "NA"]
[PlyCount "65"]
[EventDate "2022.02.12"]
[EventType "swiss"]
[EventCountry "MEX"]
[SourceTitle "playchess.com"]
[Source "ChessBase"]
[SourceQuality "1"]
[TimeControl "5400+30"]

1. d4 {[%emt 0:04:27]} d5 {[%emt 0:09:53]} 2. c4 {[%emt 0:00:28]} c6 {[%emt 0:00:09]} 3. Nf3 {[%emt 0:00:10]} Nf6 {[%emt 0:00:04]} 4. e3 {[%emt 0:00:51]} e6 {[%emt 0:01:16]} 5. b3 {[%emt 0:02:10]} Bd6 {[%emt 0:02:54]} 6. Bd3 {[%emt 0:00:20]} O-O {[%emt 0:00:28]} 7. Nbd2 {[%emt 0:00:32]} Nbd7 {[%emt 0:02:14]} 8. Bb2 {[%emt 0:00:10]} Qe7 {[%emt 0:01:28]} 9. Ne5 {[%emt 0:05:55]} c5 {[%emt 0:08:51]} 10. O-O {[%emt 0:00:51]} b6 {[%emt 0:00:18]} 11. Qf3 {[%emt 0:30:01]} Bb7 {[%emt 0:01:35]} 12. Qh3 {[%emt 0:03:07]} h6 {[%emt 0:05:13]} 13. Rfd1 {[%emt 0:06:22]} Rfd8 {[%emt 0:00:31]} 14. cxd5 {[%emt 0:05:05]} exd5 {[%emt 0:05:03]} 15. Nxd7 {[%emt 0:04:18]} Qxd7 {[%emt 0:00:27]} 16. Qf3 {[%emt 0:00:52]} c4 {[%emt 0:08:45]} 17. Bf5 {[%emt 0:00:07]} Qc7 {[%emt 0:00:06]} 18. Rac1 {[%emt 0:00:01]} b5 {[%emt 0:00:10]} 19. Qe2 {[%emt 0:03:02]} Bc8 {[%emt 0:10:29]} 20. Bxc8 {[%emt 0:01:03]} Raxc8 {[%emt 0:00:17]} 21. e4 {[%emt 0:01:21]} Bxh2+ {[%emt 0:01:25]} 22. Kh1 {[%emt 0:00:13]} Bf4 {[%emt 0:00:06]} 23. exd5 {[%emt 0:04:03]} Rxd5 {[%emt 0:01:09]} 24. g3 {[%emt 0:10:19]} Qb7 {[%emt 0:14:30]} 25. Kg1 {[%emt 0:04:54]} Bxd2 {[%emt 0:11:54]} 26. Rxd2 {[%emt 0:00:04]} Re8 {[%emt 0:00:20]} 27. Qf3 {[%emt 0:00:22]} cxb3 {[%emt 0:12:40]} 28. axb3 {[%emt 0:01:00]} Qd7 {[%emt 0:00:21]} 29. Re2 {[%emt 0:05:12]} Rxe2 {[%emt 0:01:36]} 30. Qxe2 {[%emt 0:00:01]} a5 {[%emt 0:00:24]} 31. Rc5 {[%emt 0:03:03]} a4 {[%emt 0:01:24]} 32. Qf3 {[%emt 0:06:06]} Qb7 {[%emt 0:00:30]} 33. Rc1 {[%emt 0:00:30]} 1/2-1/2

[Event "VIII Iberoamericano Mexico 2022"]
[Site "Mexico City"]
[Date "2022.02.16"]
[Round "5.43"]
[White "Salazar Moreno, Rafael"]
[Black "Vega Garcia, Jorge Arturo"]
[Result "0-1"]
[ECO "A41"]
[WhiteElo "1778"]
[BlackElo "2121"]
[Annotator "ChessBase"]
[PlyCount "88"]
[EventDate "2022.02.12"]
[EventType "swiss"]
[EventCountry "MEX"]
[SourceTitle "playchess.com"]
[Source "ChessBase"]
[SourceQuality "1"]
[TimeControl "5400+30"]

1. d4 {[%emt 0:10:15]} g6 {[%emt 0:00:54]} 2. Nf3 {[%emt 0:00:13]} Bg7 {[%emt 0:00:15]} 3. Bf4 {[%emt 0:00:49]} d6 {[%emt 0:00:36]} 4. e3 {[%emt 0:00:25]} Nd7 {[%emt 0:00:18]} 5. c3 {[%emt 1:21:18]} e5 6. dxe5 {[%emt 0:00:00]} dxe5 {[%emt 0:01:40]} 7. Bg3 {[%emt 0:00:00]} Qe7 {[%emt 1:30:17]} 8. Nbd2 {[%emt 0:00:00]} Ngf6 {[%emt 0:00:00]} 9. h3 {[%emt 0:00:00]} O-O {[%emt 0:00:00]} 10. Be2 {[%emt 0:02:30]} Re8 11. O-O {[%emt 0:00:00]} h6 {[%emt 0:00:00]} 12. Qc2 {[%emt 0:01:00]} b6 13. Nc4 {[%emt 0:00:00]} Nh7 {[%emt 0:03:00]} 14. Rad1 Nhf8 {[%emt 0:00:00]} 15. Rfe1 {[%emt 0:00:00]} Bb7 {[%emt 0:00:00]} 16. a4 {[%emt 0:00:00]} a5 {[%emt 0:00:00]} 17. Na3 {[%emt 0:00:00]} Nc5 {[%emt 0:00:00]} 18. Nb5 {[%emt 0:00:00]} Be4 {[%emt 0:00:00]} 19. Qd2 {[%emt 0:00:00]} Nb3 {[%emt 0:00:00]} 20. Nxc7 {[%emt 0:00:00]} Nxd2 {[%emt 0:00:00]} 21. Nxe8 {[%emt 0:00:00]} Nxf3+ {[%emt 0:00:00]} 22. gxf3 {[%emt 0:00:00]} Bc2 {[%emt 0:00:00]} 23. Rd2 {[%emt 0:00:00]} Qxe8 {[%emt 0:00:00]} 24. Rxc2 {[%emt 0:00:00]} Qxa4 {[%emt 0:00:00]} 25. Rd2 {[%emt 0:00:00]} h5 {[%emt 0:00:00]} 26. Red1 {[%emt 0:00:00]} h4 {[%emt 0:00:00]} 27. Bh2 {[%emt 0:00:00]} Qb3 {[%emt 0:00:00]} 28. Ra1 {[%emt 0:00:00]} Qe6 {[%emt 0:00:00]} 29. Bf1 {[%emt 0:00:00]} Nh7 {[%emt 0:00:00]} 30. Ra4 {[%emt 0:00:00]} Ng5 {[%emt 0:00:00]} 31. Bg2 {[%emt 0:00:00]} Qc6 {[%emt 0:00:00]} 32. Rxh4 {[%emt 0:00:00]} Nxf3+ {[%emt 0:00:00]} 33. Kh1 {[%emt 0:00:00]} e4 {[%emt 0:00:00]} 34. Rd6 {[%emt 0:00:00]} Qxd6 {[%emt 0:00:00]} 35. Bxd6 {[%emt 0:00:00]} Nxh4 {[%emt 0:00:00]} 36. Bxe4 {[%emt 0:00:00]} Rd8 {[%emt 0:00:00]} 37. Bc7 {[%emt 0:00:00]} Rd2 {[%emt 0:00:00]} 38. Bxb6 {[%emt 0:00:00]} Rxb2 {[%emt 0:00:00]} 39. Bxa5 {[%emt 0:00:00]} Rxf2 {[%emt 0:00:00]} 40. c4 {[%emt 0:00:00]} Nf3 {[%emt 0:00:00]} 41. Bc7 {[%emt 0:00:00]} Be5 {[%emt 0:00:00]} 42. Bxf3 {[%emt 0:01:36]} Bxc7 {[%emt 0:00:00]} 43. Bg2 {[%emt 0:00:45]} Re2 {[%emt 0:00:00]} 44. Kg1 {[%emt 0:00:35]} Rxe3 {[%emt 0:00:00]} 0-1